[Event "MCR rapid mládeže 2023 U16"]
[Site "Harachov, Czech Republic"]
[Date "2023.09.10"]
[Round "7.11"]
[White "Buchtova, Viktorie"]
[Black "Nguyen, Nhat Minh Thu"]
[Result "1-0"]
[TimeControl "20min+5s/move"]
[WhiteElo "1556"]
[BlackElo "1405"]

1. e4 {[%clk 00:20:08]} {[%emt 00:00:02]} e5 {[%clk 00:20:06]} {[%emt
00:00:05]} 2. Nf3 {[%clk 00:20:12]} {[%emt 00:00:01]} Nc6 {[%clk 00:20:09]}
{[%emt 00:00:02]} 3. Bb5 {[%clk 00:20:16]} {[%emt 00:00:02]} d6 {[%clk
00:20:12]} {[%emt 00:00:01]} 4. O-O {[%clk 00:20:17]} {[%emt 00:00:03]} Nf6
{[%clk 00:20:11]} {[%emt 00:00:07]} 5. Re1 {[%clk 00:20:21]} {[%emt 00:00:02]}
Be7 {[%clk 00:20:09]} {[%emt 00:00:06]} 6. c3 {[%clk 00:20:21]} {[%emt
00:00:05]} a6 {[%clk 00:20:09]} {[%emt 00:00:06]} 7. Ba4 {[%clk 00:20:25]}
{[%emt 00:00:01]} b5 {[%clk 00:20:13]} 8. Bb3 {[%clk 00:20:29]} Bg4 {[%clk
00:19:38]} {[%emt 00:00:41]} 9. h3 {[%clk 00:20:19]} {[%emt 00:02:17]} Bh5
{[%clk 00:19:03]} {[%emt 00:00:39]} 10. d3 {[%clk 00:20:22]} {[%emt 00:00:02]}
O-O {[%clk 00:18:15]} {[%emt 00:00:53]} 11. Nbd2 {[%clk 00:20:22]} {[%emt
00:00:04]} Na5 {[%clk 00:18:08]} {[%emt 00:00:12]} 12. Bc2 {[%clk 00:20:26]}
{[%emt 00:00:01]} c5 {[%clk 00:18:04]} {[%emt 00:00:09]} 13. Nf1 {[%clk
00:20:25]} {[%emt 00:00:05]} Nc6 {[%emt 00:00:14]} 14. Ng3 {[%clk 00:20:17]}
{[%emt 00:00:06]} Bxf3 {[%clk 00:17:54]} {[%emt 00:00:13]} 15. Qxf3 {[%clk
00:20:18]} {[%emt 00:00:03]} Rc8 {[%clk 00:17:51]} {[%emt 00:00:09]} 16. Nf5
{[%clk 00:19:24]} {[%emt 00:00:59]} g6 {[%clk 00:14:59]} {[%emt 00:02:57]} 17.
Nxe7+ {[%clk 00:16:50]} {[%emt 00:02:40]} Qxe7 {[%clk 00:15:00]} {[%emt
00:00:04]} 18. Bg5 {[%clk 00:13:45]} {[%emt 00:03:09]} Kg7 {[%clk 00:14:54]}
{[%emt 00:00:12]} 19. Qe3 {[%clk 00:13:37]} {[%emt 00:00:13]} Rfe8 {[%clk
00:14:18]} {[%emt 00:00:42]} 20. Bb3 {[%clk 00:12:05]} {[%emt 00:01:36]} Na5
{[%clk 00:13:13]} {[%emt 00:01:11]} 21. Bd5 {[%clk 00:10:41]} {[%emt 00:01:29]}
Nxd5 {[%clk 00:11:36]} {[%emt 00:01:42]} 22. exd5 {[%clk 00:10:21]} {[%emt
00:00:24]} Qd7 {[%clk 00:09:36]} {[%emt 00:02:06]} 23. Bh6+ {[%clk 00:09:25]}
{[%emt 00:01:00]} Kg8 {[%clk 00:09:29]} {[%emt 00:00:12]} 24. Qg5 {[%clk
00:08:45]} {[%emt 00:00:45]} Qf5 {[%clk 00:09:24]} {[%emt 00:00:11]} 25. Re3
{[%clk 00:05:50]} {[%emt 00:02:58]} Qxg5 {[%clk 00:09:06]} {[%emt 00:00:24]} 26.
Bxg5 {[%clk 00:05:53]} {[%emt 00:00:02]} c4 {[%clk 00:06:07]} {[%emt 00:03:04]}
27. d4 {[%clk 00:05:53]} {[%emt 00:00:04]} Kg7 {[%clk 00:04:58]} {[%emt
00:01:14]} 28. dxe5 {[%clk 00:04:22]} {[%emt 00:01:37]} Rxe5 {[%clk 00:04:35]}
{[%emt 00:00:28]} 29. Rxe5 {[%clk 00:04:10]} {[%emt 00:00:16]} dxe5 {[%clk
00:04:39]} 30. Be7 {[%clk 00:04:13]} {[%emt 00:00:03]} Nb7 {[%clk 00:03:42]}
{[%emt 00:01:03]} 31. d6 {[%clk 00:03:17]} {[%emt 00:01:00]} Re8 {[%clk
00:03:22]} {[%emt 00:00:26]} 32. a4 {[%clk 00:02:26]} {[%emt 00:00:56]} f6
{[%clk 00:01:07]} {[%emt 00:02:20]} 33. axb5 {[%clk 00:02:27]} {[%emt
00:00:04]} axb5 {[%clk 00:01:11]} {[%emt 00:00:02]} 34. Ra7 {[%clk 00:02:14]}
{[%emt 00:00:18]} Rb8 {[%clk 00:00:20]} {[%emt 00:00:57]} 35. d7 {[%clk
00:01:10]} {[%emt 00:01:09]} Kh6 {[%clk 00:00:10]} {[%emt 00:00:15]} 36. Rxb7
{[%clk 00:01:03]} {[%emt 00:00:11]} Rxb7 {[%emt 00:00:02]} 37. d8=Q {[%clk
00:01:05]} {[%emt 00:00:02]} Ra7 {[%clk 00:00:17]} {[%emt 00:00:03]} 38. Bxf6
{[%clk 00:01:06]} {[%emt 00:00:03]} Ra1+ {[%clk 00:00:21]} 39. Kh2 {[%clk
00:01:10]} {[%emt 00:00:01]} Rf1 {[%clk 00:00:22]} {[%emt 00:00:04]} 40. Bg5+
{[%clk 00:01:09]} {[%emt 00:00:06]} Kg7 {[%clk 00:00:27]} 41. Qe7+ {[%clk
00:01:13]} {[%emt 00:00:02]} Kg8 {[%clk 00:00:31]} 42. Bf6 {[%clk 00:01:12]}
{[%emt 00:00:05]} Rxf2 {[%clk 00:00:35]} {[%emt 00:00:02]} 43. Qg7# {[%clk
00:01:16]} 1-0

[Event "MCR rapid mládeže 2023 U16"]
[Site "Harachov, Czech Republic"]
[Date "2023.09.10"]
[Round "7.12"]
[White "Kammova, Katerina"]
[Black "Mikesova, Lenka"]
[Result "1-0"]
[TimeControl "20min+5s/move"]
[WhiteElo "1393"]
[BlackElo "1410"]

1. e4 {[%clk 00:20:07]} {[%emt 00:00:01]} e5 {[%clk 00:20:09]} {[%emt
00:00:02]} 2. Nf3 {[%clk 00:20:10]} {[%emt 00:00:02]} Nc6 {[%clk 00:20:12]}
{[%emt 00:00:02]} 3. Bc4 {[%clk 00:20:13]} {[%emt 00:00:02]} Nf6 {[%clk
00:20:13]} {[%emt 00:00:04]} 4. Ng5 {[%clk 00:20:13]} {[%emt 00:00:04]} d5
{[%clk 00:19:55]} {[%emt 00:00:23]} 5. exd5 {[%clk 00:20:16]} {[%emt 00:00:02]}
Na5 {[%clk 00:19:02]} {[%emt 00:03:01]} 6. d3 {[%clk 00:20:01]} {[%emt
00:00:20]} h6 {[%clk 00:17:42]} {[%emt 00:01:25]} 7. Nf3 {[%clk 00:19:58]}
{[%emt 00:00:08]} Nxc4 {[%clk 00:17:03]} {[%emt 00:00:45]} 8. dxc4 {[%clk
00:19:57]} {[%emt 00:00:05]} Bd6 {[%clk 00:16:32]} {[%emt 00:00:37]} 9. h3
{[%clk 00:19:46]} {[%emt 00:00:16]} O-O {[%clk 00:16:23]} {[%emt 00:00:13]} 10.
O-O {[%clk 00:19:42]} {[%emt 00:00:09]} Nh7 {[%clk 00:14:18]} {[%emt 00:02:11]}
11. Re1 {[%clk 00:19:02]} {[%emt 00:00:44]} Re8 {[%clk 00:13:20]} {[%emt
00:01:03]} 12. Nbd2 {[%clk 00:17:49]} {[%emt 00:01:19]} Bf5 {[%clk 00:11:55]}
{[%emt 00:01:29]} 13. Ne4 {[%clk 00:17:16]} {[%emt 00:00:38]} Bxe4 {[%clk
00:11:34]} {[%emt 00:00:26]} 14. Rxe4 {[%clk 00:17:15]} {[%emt 00:00:06]} f5
{[%clk 00:11:19]} {[%emt 00:00:20]} 15. Re1 {[%clk 00:17:14]} {[%emt 00:00:06]}
Qf6 {[%clk 00:10:25]} {[%emt 00:00:59]} 16. Rb1 {[%clk 00:16:20]} {[%emt
00:00:59]} Ng5 {[%clk 00:08:46]} {[%emt 00:01:44]} 17. Nxg5 {[%clk 00:15:34]}
{[%emt 00:00:51]} hxg5 {[%clk 00:08:49]} {[%emt 00:00:02]} 18. a3 {[%clk
00:15:31]} {[%emt 00:00:09]} e4 {[%clk 00:07:51]} {[%emt 00:01:03]} 19. b4
{[%clk 00:15:16]} {[%emt 00:00:20]} Qe5 {[%clk 00:05:14]} {[%emt 00:02:43]} 20.
g3 {[%clk 00:13:35]} {[%emt 00:01:46]} Qf6 {[%clk 00:03:35]} {[%emt 00:01:44]}
21. Bb2 {[%clk 00:10:21]} {[%emt 00:03:19]} Qh6 {[%clk 00:03:25]} {[%emt
00:00:15]} 22. Kg2 {[%clk 00:09:45]} {[%emt 00:00:41]} f4 {[%clk 00:03:12]}
{[%emt 00:00:19]} 23. Qg4 {[%clk 00:09:07]} {[%emt 00:00:42]} f3+ {[%clk
00:02:26]} {[%emt 00:00:52]} 24. Kg1 {[%clk 00:08:19]} {[%emt 00:00:53]} Qg6
{[%clk 00:02:27]} {[%emt 00:00:03]} 25. h4 {[%clk 00:07:45]} {[%emt 00:00:39]}
e3 {[%clk 00:01:25]} {[%emt 00:01:08]} 26. fxe3 {[%clk 00:07:11]} {[%emt
00:00:39]} Qxc2 {[%clk 00:01:26]} {[%emt 00:00:03]} 27. Qxf3 {[%clk 00:06:28]}
{[%emt 00:00:48]} Rf8 {[%clk 00:01:18]} {[%emt 00:00:14]} 28. Qg2 {[%clk
00:06:24]} {[%emt 00:00:09]} Qxc4 {[%clk 00:00:58]} {[%emt 00:00:24]} 29. Bd4
{[%clk 00:05:28]} {[%emt 00:01:01]} Qd3 {[%clk 00:00:50]} {[%emt 00:00:13]} 30.
Qh3 {[%clk 00:04:52]} {[%emt 00:00:42]} gxh4 {[%clk 00:00:43]} {[%emt
00:00:12]} 31. Qxh4 {[%clk 00:04:19]} {[%emt 00:00:38]} Qg6 {[%clk 00:00:46]}
{[%emt 00:00:01]} 32. Qh3 {[%clk 00:03:08]} {[%emt 00:01:16]} Rf7 {[%clk
00:00:40]} {[%emt 00:00:12]} 33. Rf1 {[%clk 00:02:43]} {[%emt 00:00:29]} Raf8
{[%clk 00:00:44]} {[%emt 00:00:01]} 34. Rxf7 {[%clk 00:01:51]} {[%emt
00:00:57]} Qxb1+ {[%clk 00:00:47]} {[%emt 00:00:02]} 35. Rf1 {[%clk 00:01:55]}
Rxf1+ {[%clk 00:00:40]} {[%emt 00:00:13]} 36. Qxf1 {[%clk 00:01:58]} {[%emt
00:00:02]} Qe4 {[%clk 00:00:41]} {[%emt 00:00:04]} 37. Qh3 {[%clk 00:01:20]}
{[%emt 00:00:43]} Qxd5 {[%clk 00:00:35]} {[%emt 00:00:12]} 38. Qc8+ {[%clk
00:01:03]} {[%emt 00:00:22]} Kf7 {[%clk 00:00:31]} {[%emt 00:00:08]} 39. Qg4
{[%clk 00:01:01]} {[%emt 00:00:07]} Be5 {[%clk 00:00:24]} {[%emt 00:00:12]} 40.
Qf5+ {[%clk 00:01:05]} Kg8 {[%clk 00:00:21]} {[%emt 00:00:08]} 41. Qxe5 {[%clk
00:01:06]} {[%emt 00:00:04]} Qf7 {[%clk 00:00:24]} {[%emt 00:00:02]} 42. Qf4
{[%clk 00:01:05]} {[%emt 00:00:06]} Qc4 {[%clk 00:00:22]} {[%emt 00:00:07]} 43.
Qg4 {[%clk 00:00:49]} {[%emt 00:00:21]} Qc1+ {[%clk 00:00:24]} {[%emt
00:00:03]} 44. Kg2 {[%clk 00:00:36]} {[%emt 00:00:18]} Qc2+ {[%clk 00:00:27]}
{[%emt 00:00:03]} 45. Kf1 {[%clk 00:00:25]} {[%emt 00:00:16]} Qd3+ {[%clk
00:00:27]} {[%emt 00:00:06]} 46. Qe2 {[%clk 00:00:22]} {[%emt 00:00:08]} Qf5+
{[%clk 00:00:29]} {[%emt 00:00:03]} 47. Kg2 {[%clk 00:00:26]} Qe4+ {[%clk
00:00:33]} {[%emt 00:00:02]} 48. Kg1 {[%clk 00:00:19]} {[%emt 00:00:11]} Qb1+
{[%clk 00:00:36]} {[%emt 00:00:03]} 49. Qf1 {[%clk 00:00:23]} {[%emt 00:00:01]}
Qg6 {[%clk 00:00:35]} {[%emt 00:00:06]} 50. Qc4+ {[%clk 00:00:16]} {[%emt
00:00:13]} Kh7 {[%clk 00:00:36]} {[%emt 00:00:03]} 51. Qxc7 {[%clk 00:00:19]}
{[%emt 00:00:02]} Qb1+ {[%clk 00:00:38]} {[%emt 00:00:04]} 52. Kh2 {[%clk
00:00:23]} {[%emt 00:00:01]} Qg6 {[%clk 00:00:35]} {[%emt 00:00:07]} 53. Qf4
{[%clk 00:00:22]} {[%emt 00:00:05]} Qc2+ {[%clk 00:00:35]} {[%emt 00:00:06]} 54.
Kh3 {[%clk 00:00:24]} {[%emt 00:00:03]} Qc8+ {[%clk 00:00:37]} {[%emt
00:00:03]} 55. Qg4 {[%clk 00:00:26]} {[%emt 00:00:03]} Qc7 {[%clk 00:00:13]}
{[%emt 00:00:29]} 56. Qxg7+ {[%clk 00:00:22]} {[%emt 00:00:09]} Qxg7 {[%clk
00:00:16]} {[%emt 00:00:02]} 57. Bxg7 {[%clk 00:00:26]} {[%emt 00:00:01]} Kxg7
{[%clk 00:00:20]} {[%emt 00:00:01]} 58. Kg4 {[%clk 00:00:31]} Kg6 {[%clk
00:00:23]} {[%emt 00:00:03]} 59. e4 {[%clk 00:00:33]} {[%emt 00:00:02]} Kf6
{[%clk 00:00:27]} {[%emt 00:00:01]} 60. Kf4 {[%clk 00:00:37]} Kg6 {[%clk
00:00:30]} {[%emt 00:00:02]} 61. e5 {[%clk 00:00:40]} {[%emt 00:00:02]} 1-0

[Event "MCR rapid mládeže 2023 U16"]
[Site "Harachov, Czech Republic"]
[Date "2023.09.10"]
[Round "7.13"]
[White "Kubatova, Beta"]
[Black "Lackova, Ludmila"]
[Result "1/2-1/2"]
[TimeControl "20min+5s/move"]
[WhiteElo "1376"]
[BlackElo "1479"]

1. d4 {[%clk 00:20:07]} {[%emt 00:00:03]} d5 {[%clk 00:20:09]} {[%emt
00:00:01]} 2. c4 {[%clk 00:20:09]} {[%emt 00:00:02]} dxc4 {[%clk 00:20:11]}
{[%emt 00:00:03]} 3. Nc3 {[%clk 00:19:57]} {[%emt 00:00:17]} Nf6 {[%emt
00:01:11]} 4. Bg5 {[%clk 00:19:09]} {[%emt 00:02:26]} g6 {[%clk 00:19:18]}
{[%emt 00:00:36]} 5. e3 {[%clk 00:19:00]} {[%emt 00:00:13]} Bg7 {[%clk
00:19:21]} {[%emt 00:00:02]} 6. Bxc4 {[%clk 00:18:56]} {[%emt 00:00:09]} O-O
{[%clk 00:19:21]} {[%emt 00:00:05]} 7. Nf3 {[%clk 00:18:54]} {[%emt 00:00:07]}
Bg4 {[%clk 00:19:16]} {[%emt 00:00:09]} 8. h3 {[%clk 00:18:40]} {[%emt
00:00:20]} Bf5 {[%clk 00:19:18]} {[%emt 00:00:02]} 9. O-O {[%clk 00:18:38]}
{[%emt 00:00:08]} Ne4 {[%clk 00:17:42]} {[%emt 00:01:40]} 10. Nxe4 {[%clk
00:16:58]} {[%emt 00:01:45]} Bxe4 {[%clk 00:17:45]} {[%emt 00:00:03]} 11. Bd3
{[%clk 00:16:54]} {[%emt 00:00:09]} Bxd3 {[%clk 00:16:41]} {[%emt 00:01:09]} 12.
Qxd3 {[%clk 00:16:52]} {[%emt 00:00:07]} Qd7 {[%clk 00:12:32]} {[%emt
00:04:14]} 13. Qe2 {[%clk 00:14:36]} {[%emt 00:02:22]} Nc6 {[%clk 00:11:54]}
{[%emt 00:00:42]} 14. Rfd1 {[%clk 00:14:15]} {[%emt 00:00:25]} e6 {[%clk
00:10:49]} {[%emt 00:01:11]} 15. Rac1 {[%clk 00:14:02]} {[%emt 00:00:19]} Nb4
{[%clk 00:08:49]} {[%emt 00:02:05]} 16. a3 {[%clk 00:12:57]} {[%emt 00:01:10]}
Nd5 {[%clk 00:08:28]} {[%emt 00:00:26]} 17. Bh4 {[%clk 00:12:20]} {[%emt
00:00:42]} c6 {[%clk 00:07:41]} {[%emt 00:00:52]} 18. Bg3 {[%clk 00:12:10]}
{[%emt 00:00:16]} Rfd8 {[%clk 00:06:51]} {[%emt 00:00:55]} 19. Ne5 {[%clk
00:11:46]} {[%emt 00:00:29]} Qe7 {[%clk 00:06:10]} {[%emt 00:00:46]} 20. b4
{[%clk 00:11:31]} {[%emt 00:00:21]} Rac8 {[%clk 00:05:59]} {[%emt 00:00:14]} 21.
Nc4 {[%clk 00:06:00]} {[%emt 00:05:38]} Nb6 {[%clk 00:05:35]} {[%emt 00:00:29]}
22. Nb2 {[%clk 00:04:05]} {[%emt 00:02:00]} Nd5 {[%clk 00:05:01]} {[%emt
00:00:39]} 23. Nd3 {[%clk 00:03:28]} {[%emt 00:00:41]} Nb6 {[%clk 00:04:21]}
{[%emt 00:00:45]} 24. Nc5 {[%clk 00:03:08]} {[%emt 00:00:25]} Nd5 {[%clk
00:03:41]} {[%emt 00:00:44]} 25. Ne4 {[%clk 00:01:50]} {[%emt 00:01:23]} Kh8
{[%clk 00:02:24]} {[%emt 00:01:22]} 26. Nc3 {[%clk 00:01:22]} {[%emt 00:00:34]}
Nxc3 {[%clk 00:02:22]} {[%emt 00:00:07]} 27. Rxc3 {[%clk 00:01:23]} {[%emt
00:00:03]} Rd7 {[%clk 00:02:24]} {[%emt 00:00:03]} 28. Rcc1 {[%clk 00:00:55]}
{[%emt 00:00:33]} Bf6 {[%clk 00:02:00]} {[%emt 00:00:29]} 29. Qf3 {[%clk
00:00:36]} {[%emt 00:00:24]} Bg7 {[%clk 00:01:46]} {[%emt 00:00:19]} 30. Qe2
{[%clk 00:00:17]} {[%emt 00:00:25]} Kg8 {[%clk 00:01:48]} {[%emt 00:00:02]} 31.
b5 {[%clk 00:00:08]} {[%emt 00:00:14]} Qxa3 {[%clk 00:01:06]} {[%emt 00:00:47]}
32. bxc6 {[%clk 00:00:09]} {[%emt 00:00:04]} Rxc6 {[%clk 00:00:33]} {[%emt
00:00:38]} 33. Ra1 {[%clk 00:00:08]} {[%emt 00:00:06]} Qe7 {[%clk 00:00:27]}
{[%emt 00:00:10]} 34. Rxa7 {[%clk 00:00:10]} {[%emt 00:00:03]} Rc8 {[%clk
00:00:19]} {[%emt 00:00:14]} 1/2-1/2

[Event "MCR rapid mládeže 2023 U16"]
[Site "Harachov, Czech Republic"]
[Date "2023.09.10"]
[Round "7.14"]
[White "Slivova, Linda"]
[Black "Kubatova, Ema"]
[Result "1-0"]
[TimeControl "20min+5s/move"]
[WhiteElo "1386"]
[BlackElo "1206"]

1. d4 {[%clk 00:20:08]} {[%emt 00:00:02]} Nf6 {[%clk 00:20:07]} {[%emt
00:00:02]} 2. Nf3 {[%clk 00:20:11]} {[%emt 00:00:02]} e6 {[%clk 00:20:08]}
{[%emt 00:00:04]} 3. Bf4 {[%clk 00:20:08]} {[%emt 00:00:08]} b6 {[%clk
00:20:00]} {[%emt 00:00:14]} 4. e3 {[%clk 00:19:58]} {[%emt 00:00:15]} Bb7
{[%clk 00:19:51]} {[%emt 00:00:13]} 5. Bd3 {[%clk 00:19:45]} {[%emt 00:02:49]}
Be7 {[%clk 00:19:29]} {[%emt 00:00:26]} 6. Nbd2 {[%clk 00:19:18]} {[%emt
00:00:33]} d6 {[%clk 00:19:12]} {[%emt 00:00:22]} 7. Bg3 {[%clk 00:18:20]}
{[%emt 00:01:03]} Nbd7 {[%clk 00:18:38]} {[%emt 00:00:38]} 8. e4 {[%clk
00:17:08]} {[%emt 00:01:18]} c5 {[%clk 00:13:09]} {[%emt 00:05:34]} 9. c3
{[%clk 00:16:15]} {[%emt 00:00:59]} Rc8 {[%clk 00:12:44]} {[%emt 00:00:29]} 10.
Rc1 {[%clk 00:15:16]} {[%emt 00:01:04]} O-O {[%clk 00:12:32]} {[%emt 00:00:16]}
11. O-O {[%clk 00:14:21]} {[%emt 00:01:01]} d5 {[%clk 00:11:21]} {[%emt
00:01:16]} 12. e5 {[%clk 00:13:13]} {[%emt 00:01:13]} Nh5 {[%clk 00:10:35]}
{[%emt 00:00:41]} 13. Re1 {[%clk 00:10:10]} {[%emt 00:03:19]} Nxg3 {[%clk
00:09:46]} {[%emt 00:00:54]} 14. hxg3 {[%clk 00:10:14]} {[%emt 00:00:02]} cxd4
{[%clk 00:09:08]} {[%emt 00:00:43]} 15. cxd4 {[%clk 00:10:06]} {[%emt
00:00:13]} Nb8 {[%clk 00:08:58]} {[%emt 00:00:15]} 16. Qa4 {[%clk 00:08:24]}
{[%emt 00:01:47]} a5 {[%clk 00:07:30]} {[%emt 00:01:32]} 17. a3 {[%clk
00:07:30]} {[%emt 00:00:59]} Nc6 {[%clk 00:06:53]} {[%emt 00:00:41]} 18. Bb5
{[%clk 00:07:14]} {[%emt 00:00:22]} Na7 {[%clk 00:06:31]} {[%emt 00:00:28]} 19.
Bd3 {[%clk 00:06:18]} {[%emt 00:01:00]} Nc6 {[%clk 00:06:12]} {[%emt 00:00:24]}
20. Rc3 {[%clk 00:05:51]} {[%emt 00:00:32]} Bg5 {[%clk 00:05:27]} {[%emt
00:00:36]} 21. Nxg5 {[%clk 00:05:31]} {[%emt 00:00:38]} Qxg5 {[%clk 00:05:29]}
{[%emt 00:00:03]} 22. Nf3 {[%clk 00:05:33]} {[%emt 00:00:03]} Qd8 {[%clk
00:04:27]} {[%emt 00:01:05]} 23. Rec1 {[%clk 00:05:17]} {[%emt 00:00:24]} Na7
{[%clk 00:03:56]} {[%emt 00:00:36]} 24. Rxc8 {[%clk 00:05:05]} {[%emt
00:00:18]} Bxc8 {[%clk 00:03:45]} {[%emt 00:00:16]} 25. Qc2 {[%clk 00:04:51]}
{[%emt 00:00:18]} Qd7 {[%clk 00:03:06]} {[%emt 00:00:43]} 26. Bxh7+ {[%clk
00:04:40]} {[%emt 00:00:17]} Kh8 {[%clk 00:03:04]} {[%emt 00:00:08]} 27. Bd3
{[%clk 00:04:13]} {[%emt 00:00:32]} Qb7 {[%clk 00:01:22]} {[%emt 00:01:46]} 28.
Kh2 {[%clk 00:03:11]} {[%emt 00:01:08]} Rd8 {[%clk 00:00:42]} {[%emt 00:00:44]}
29. Rh1 {[%clk 00:02:34]} {[%emt 00:00:43]} Kg8 {[%clk 00:00:39]} {[%emt
00:00:08]} 30. Ng5 {[%clk 00:01:55]} {[%emt 00:00:45]} Kf8 {[%clk 00:00:18]}
{[%emt 00:00:25]} 31. Qe2 {[%clk 00:01:58]} {[%emt 00:00:03]} Rd7 {[%clk
00:00:08]} {[%emt 00:00:15]} 32. Qf3 {[%clk 00:01:53]} {[%emt 00:00:10]} Ke8
{[%clk 00:00:08]} {[%emt 00:00:05]} 33. Kg1 {[%clk 00:01:36]} {[%emt 00:00:22]}
Kd8 {[%clk 00:00:09]} {[%emt 00:00:04]} 34. Rh7 {[%clk 00:01:23]} {[%emt
00:00:18]} Kc7 {[%clk 00:00:07]} {[%emt 00:00:07]} 35. Rxg7 {[%clk 00:01:22]}
{[%emt 00:00:06]} Kb8 {[%clk 00:00:09]} {[%emt 00:00:02]} 36. Rxf7 {[%clk
00:01:22]} {[%emt 00:00:05]} Rxf7 {[%clk 00:00:10]} {[%emt 00:00:04]} 37. Qxf7
{[%clk 00:01:16]} {[%emt 00:00:12]} Qc6 {[%clk 00:00:07]} {[%emt 00:00:08]} 38.
Qf4 {[%clk 00:01:00]} {[%emt 00:00:20]} Qd7 {[%clk 00:00:07]} {[%emt 00:00:06]}
39. Qc1 {[%clk 00:00:53]} {[%emt 00:00:12]} Bb7 {[%clk 00:00:00]} {[%emt
00:00:07]} 40. Be2 {[%emt 00:00:22]} 1-0

[Event "MCR rapid mládeže 2023 U16"]
[Site "Harachov, Czech Republic"]
[Date "2023.09.10"]
[Round "7.15"]
[White "Mik, Tomas"]
[Black "Svadlenka, Michal"]
[Result "1-0"]
[TimeControl "20min+5s/move"]
[WhiteElo "1802"]
[BlackElo "1451"]

1. e4 {[%clk 00:20:08]} {[%emt 00:00:01]} c5 {[%clk 00:20:09]} {[%emt
00:00:01]} 2. Nf3 {[%clk 00:20:12]} {[%emt 00:00:02]} d6 {[%clk 00:20:13]}
{[%emt 00:00:01]} 3. d4 {[%clk 00:20:15]} {[%emt 00:00:01]} cxd4 {[%clk
00:20:17]} {[%emt 00:00:01]} 4. Nxd4 {[%clk 00:20:19]} {[%emt 00:00:01]} Nf6
{[%clk 00:20:21]} {[%emt 00:00:01]} 5. Nc3 {[%clk 00:20:23]} {[%emt 00:00:02]}
g6 {[%clk 00:20:25]} {[%emt 00:00:01]} 6. Be3 {[%clk 00:20:25]} {[%emt
00:00:03]} Bg7 {[%clk 00:20:28]} {[%emt 00:00:01]} 7. f3 {[%clk 00:20:28]}
{[%emt 00:00:02]} O-O {[%clk 00:20:31]} {[%emt 00:00:02]} 8. Bc4 {[%clk
00:20:30]} {[%emt 00:00:03]} Nc6 {[%clk 00:20:35]} {[%emt 00:00:02]} 9. Qd2
{[%clk 00:20:33]} {[%emt 00:00:02]} Bd7 {[%clk 00:20:31]} {[%emt 00:00:09]} 10.
O-O-O {[%clk 00:20:35]} {[%emt 00:00:02]} Rc8 {[%clk 00:20:34]} {[%emt
00:00:03]} 11. Bb3 {[%clk 00:20:38]} {[%emt 00:00:01]} a6 {[%clk 00:20:22]}
{[%emt 00:00:17]} 12. Kb1 {[%clk 00:20:32]} {[%emt 00:00:11]} Na5 {[%clk
00:20:05]} {[%emt 00:00:22]} 13. g4 {[%clk 00:20:26]} {[%emt 00:00:12]} b5
{[%clk 00:19:28]} {[%emt 00:00:42]} 14. h4 {[%clk 00:19:50]} {[%emt 00:00:40]}
h5 {[%clk 00:19:03]} {[%emt 00:00:30]} 15. gxh5 {[%clk 00:19:07]} {[%emt
00:00:48]} Nxh5 {[%clk 00:19:05]} {[%emt 00:00:03]} 16. Bh6 {[%clk 00:19:01]}
{[%emt 00:00:11]} Nxb3 {[%clk 00:18:48]} {[%emt 00:00:23]} 17. axb3 {[%clk
00:18:53]} {[%emt 00:00:12]} b4 {[%clk 00:17:28]} {[%emt 00:01:26]} 18. Nd5
{[%clk 00:18:19]} {[%emt 00:00:38]} a5 {[%clk 00:17:05]} {[%emt 00:00:29]} 19.
Rhg1 {[%clk 00:16:51]} {[%emt 00:01:33]} Kh7 {[%clk 00:12:20]} {[%emt
00:04:49]} 20. Bxg7 {[%clk 00:16:35]} {[%emt 00:00:21]} Nxg7 {[%clk 00:12:21]}
{[%emt 00:00:04]} 21. Qg5 {[%clk 00:15:58]} {[%emt 00:00:42]} Re8 {[%clk
00:09:05]} {[%emt 00:03:21]} 22. h5 {[%clk 00:14:30]} {[%emt 00:01:33]} Nxh5
{[%clk 00:08:29]} {[%emt 00:00:42]} 23. Rh1 {[%clk 00:13:57]} {[%emt 00:00:38]}
Rh8 {[%clk 00:02:26]} {[%emt 00:06:07]} 24. Rxh5+ {[%clk 00:13:46]} {[%emt
00:00:16]} Kg7 {[%clk 00:02:07]} {[%emt 00:00:23]} 25. Rxh8 {[%clk 00:12:48]}
{[%emt 00:01:04]} Qxh8 {[%clk 00:02:11]} {[%emt 00:00:02]} 26. Qxe7 {[%clk
00:12:49]} {[%emt 00:00:04]} 1-0